[Event "*** MasterClass Titled Tuesday Blitz"]
[Site "Chess.com"]
[Date "2017.12.12"]
[Round "4"]
[White "robbykevlishvili"]
[Black "dusanacns"]
[Result "1-0"]
[WhiteElo "2465"]
[BlackElo "2590"]
[TimeControl "180+2"]
[EndTime "13:48:42 PST"]
[Termination "robbykevlishvili won by resignation"]

1. e4 {[%clk 0:03:01]} 1... d6 {[%clk 0:03:01.2]} 2. d4 {[%clk 0:02:55.8]} 2...
Nf6 {[%clk 0:03:01.5]} 3. Nc3 {[%clk 0:02:55.2]} 3... e5 {[%clk 0:03:02]} 4. Nf3
{[%clk 0:02:55.3]} 4... exd4 {[%clk 0:03:03]} 5. Qxd4 {[%clk 0:02:52.3]} 5...
Be7 {[%clk 0:03:03.6]} 6. Bf4 {[%clk 0:02:51.9]} 6... O-O {[%clk 0:03:04.3]} 7.
O-O-O {[%clk 0:02:52.8]} 7... Nc6 {[%clk 0:03:05.4]} 8. Qd2 {[%clk 0:02:53.8]}
8... Be6 {[%clk 0:03:05.8]} 9. Kb1 {[%clk 0:02:52.6]} 9... Re8 {[%clk
0:03:05.1]} 10. Nd4 {[%clk 0:02:53.3]} 10... Nxd4 {[%clk 0:03:05.5]} 11. Qxd4
{[%clk 0:02:55.2]} 11... a6 {[%clk 0:03:03.3]} 12. f3 {[%clk 0:02:55.6]} 12...
b5 {[%clk 0:02:59.8]} 13. Nd5 {[%clk 0:02:53.4]} 13... Bxd5 {[%clk 0:03:00.5]}
14. exd5 {[%clk 0:02:54.2]} 14... Nd7 {[%clk 0:03:02.1]} 15. Qd2 {[%clk
0:02:54.7]} 15... Bf6 {[%clk 0:03:02.5]} 16. Bd3 {[%clk 0:02:54.5]} 16... Nc5
{[%clk 0:03:02.6]} 17. Rhe1 {[%clk 0:02:50.5]} 17... Na4 {[%clk 0:02:55.3]} 18.
c3 {[%clk 0:02:47.7]} 18... b4 {[%clk 0:02:00.5]} 19. Qc2 {[%clk 0:02:41.5]}
19... Rxe1 {[%clk 0:01:53]} 20. Rxe1 {[%clk 0:02:40.6]} 20... Qd7 {[%clk
0:01:35.2]} 21. Bxh7+ {[%clk 0:02:37.2]} 21... Kf8 {[%clk 0:01:36.2]} 22. Bf5
{[%clk 0:02:38.5]} 22... Qb5 {[%clk 0:01:37.4]} 23. c4 {[%clk 0:02:32.4]} 23...
Qa5 {[%clk 0:01:37.8]} 24. Bd7 {[%clk 0:02:33]} 24... Nc5 {[%clk 0:01:22.4]} 25.
Qh7 {[%clk 0:02:30.3]} 1-0

[Event "*** MasterClass Titled Tuesday Blitz"]
[Site "Chess.com"]
[Date "2017.12.12"]
[Round "4"]
[White "Konavets"]
[Black "florianschwabeneder"]
[Result "1-0"]
[WhiteElo "2773"]
[BlackElo "2470"]
[TimeControl "180+2"]
[EndTime "13:49:06 PST"]
[Termination "Konavets won by resignation"]

1. e4 {[%clk 0:03:01.9]} 1... e5 {[%clk 0:02:59.9]} 2. Nf3 {[%clk 0:03:02.2]}
2... Nc6 {[%clk 0:03:01.1]} 3. Bc4 {[%clk 0:03:02.2]} 3... Be7 {[%clk
0:03:00.2]} 4. d4 {[%clk 0:03:02.7]} 4... d6 {[%clk 0:03:00]} 5. c3 {[%clk
0:03:02.5]} 5... Nf6 {[%clk 0:02:59.1]} 6. h3 {[%clk 0:03:03.1]} 6... O-O {[%clk
0:02:54.1]} 7. d5 {[%clk 0:03:04.1]} 7... Nb8 {[%clk 0:02:52.6]} 8. Bd3 {[%clk
0:03:05.6]} 8... Nbd7 {[%clk 0:02:46]} 9. c4 {[%clk 0:03:07]} 9... Nh5 {[%clk
0:02:41.3]} 10. Nc3 {[%clk 0:03:08.9]} 10... g6 {[%clk 0:02:36.1]} 11. Bh6
{[%clk 0:03:08.3]} 11... Ng7 {[%clk 0:02:35.6]} 12. g4 {[%clk 0:03:09.2]} 12...
Nf6 {[%clk 0:02:35.7]} 13. Qe2 {[%clk 0:03:09.2]} 13... Kh8 {[%clk 0:02:35.6]}
14. O-O-O {[%clk 0:03:10.6]} 14... Ng8 {[%clk 0:02:36.2]} 15. Be3 {[%clk
0:03:11.9]} 15... f5 {[%clk 0:02:33.4]} 16. gxf5 {[%clk 0:03:12.9]} 16... gxf5
{[%clk 0:02:34.1]} 17. exf5 {[%clk 0:03:09.8]} 17... Nxf5 {[%clk 0:02:34.6]} 18.
Rdg1 {[%clk 0:03:10.5]} 18... Nxe3 {[%clk 0:02:26.8]} 19. fxe3 {[%clk
0:03:09.6]} 19... Qe8 {[%clk 0:01:58.4]} 20. Nd2 {[%clk 0:02:55]} 20... Nf6
{[%clk 0:01:49]} 21. Rg2 {[%clk 0:02:51.6]} 21... Bd7 {[%clk 0:01:43.9]} 22.
Rhg1 {[%clk 0:02:51.9]} 22... Qh5 {[%clk 0:01:42.2]} 23. Rg7 {[%clk 0:01:29.3]}
23... Rg8 {[%clk 0:01:40.3]} 24. Qxh5 {[%clk 0:01:29.1]} 24... Rxg7 {[%clk
0:01:20.9]} 25. Rxg7 {[%clk 0:01:31]} 25... Kxg7 {[%clk 0:01:16.7]} 26. Qg5+
{[%clk 0:01:32.3]} 26... Kf7 {[%clk 0:01:17]} 27. Nde4 {[%clk 0:01:33.3]} 27...
Rg8 {[%clk 0:01:16.1]} 28. Qh4 {[%clk 0:01:32.2]} 1-0

[Event "*** MasterClass Titled Tuesday Blitz"]
[Site "Chess.com"]
[Date "2017.12.12"]
[Round "4"]
[White "chito89"]
[Black "jcibarra"]
[Result "0-1"]
[WhiteElo "2571"]
[BlackElo "2705"]
[TimeControl "180+2"]
[EndTime "13:49:18 PST"]
[Termination "jcibarra won by resignation"]

1. d4 {[%clk 0:02:59.5]} 1... Nf6 {[%clk 0:03:00.8]} 2. Nf3 {[%clk 0:02:57.3]}
2... g6 {[%clk 0:02:49.9]} 3. Bf4 {[%clk 0:02:53.3]} 3... Bg7 {[%clk 0:02:49.2]}
4. e3 {[%clk 0:02:54.7]} 4... d6 {[%clk 0:02:50.3]} 5. h3 {[%clk 0:02:56]} 5...
O-O {[%clk 0:02:51.2]} 6. Be2 {[%clk 0:02:57.1]} 6... c5 {[%clk 0:02:52.2]} 7.
c3 {[%clk 0:02:56.6]} 7... Be6 {[%clk 0:02:52.8]} 8. Nbd2 {[%clk 0:02:54.9]}
8... Qb6 {[%clk 0:02:53.2]} 9. Qc1 {[%clk 0:02:48.4]} 9... Nc6 {[%clk 0:02:54]}
10. O-O {[%clk 0:02:46.3]} 10... Rac8 {[%clk 0:02:54.7]} 11. Bh2 {[%clk
0:02:45.7]} 11... cxd4 {[%clk 0:02:46.4]} 12. exd4 {[%clk 0:02:46.3]} 12... Nd5
{[%clk 0:02:43.1]} 13. Nc4 {[%clk 0:02:37.8]} 13... Qa6 {[%clk 0:02:38.2]} 14.
Qd2 {[%clk 0:02:18]} 14... Nxc3 {[%clk 0:02:14.4]} 15. Qxc3 {[%clk 0:02:19.5]}
15... Nxd4 {[%clk 0:02:14.5]} 16. Nxd4 {[%clk 0:02:12.7]} 16... Bxc4 {[%clk
0:02:15.7]} 17. Qd2 {[%clk 0:02:01]} 17... Bxd4 {[%clk 0:02:11.7]} 18. Qxd4
{[%clk 0:02:02.4]} 18... Bxe2 {[%clk 0:02:12.3]} 19. Rfe1 {[%clk 0:02:03.8]}
19... Rc2 {[%clk 0:02:10.9]} 20. a4 {[%clk 0:01:47.9]} 20... e5 {[%clk
0:02:07.4]} 21. Qb4 {[%clk 0:01:46.8]} 21... Qb6 {[%clk 0:02:04.6]} 22. Qxb6
{[%clk 0:01:42.4]} 22... axb6 {[%clk 0:02:06.5]} 23. b4 {[%clk 0:01:39.8]} 23...
f6 {[%clk 0:02:01.1]} 24. Bg3 {[%clk 0:01:36.8]} 24... d5 {[%clk 0:01:53.1]} 25.
f4 {[%clk 0:01:37.6]} 25... Re8 {[%clk 0:01:47.8]} 26. fxe5 {[%clk 0:01:33.4]}
26... fxe5 {[%clk 0:01:49.4]} 27. a5 {[%clk 0:01:34.5]} 27... d4 {[%clk
0:01:41.9]} 28. Rac1 {[%clk 0:01:22.7]} 28... Rxc1 {[%clk 0:01:33]} 29. Rxc1
{[%clk 0:01:24.6]} 29... bxa5 {[%clk 0:01:30.3]} 30. bxa5 {[%clk 0:01:24.8]}
30... d3 {[%clk 0:01:23.7]} 31. Be1 {[%clk 0:01:25.6]} 31... e4 {[%clk
0:01:25.2]} 32. Rc7 {[%clk 0:01:25.8]} 32... e3 {[%clk 0:01:23.6]} 33. Bc3
{[%clk 0:01:25.8]} 33... d2 {[%clk 0:01:22.7]} 0-1

[Event "*** MasterClass Titled Tuesday Blitz"]
[Site "Chess.com"]
[Date "2017.12.12"]
[Round "4"]
[White "Quiet_Desperation"]
[Black "Parhamov"]
[Result "0-1"]
[WhiteElo "2370"]
[BlackElo "2744"]
[TimeControl "180+2"]
[EndTime "13:49:21 PST"]
[Termination "Parhamov won by resignation"]

1. e4 {[%clk 0:03:01.9]} 1... c5 {[%clk 0:02:59.2]} 2. Nf3 {[%clk 0:03:03]} 2...
d6 {[%clk 0:02:59.7]} 3. d4 {[%clk 0:03:04.3]} 3... cxd4 {[%clk 0:03:00.7]} 4.
Nxd4 {[%clk 0:03:06.2]} 4... Nf6 {[%clk 0:03:02.1]} 5. Nc3 {[%clk 0:03:06.1]}
5... e6 {[%clk 0:02:59.4]} 6. Be3 {[%clk 0:03:06.8]} 6... a6 {[%clk 0:02:59.4]}
7. f3 {[%clk 0:03:08.2]} 7... b5 {[%clk 0:02:58.7]} 8. Qd2 {[%clk 0:03:09.5]}
8... Bb7 {[%clk 0:02:58]} 9. O-O-O {[%clk 0:03:10.4]} 9... Be7 {[%clk
0:02:59.4]} 10. g4 {[%clk 0:03:11.6]} 10... Nc6 {[%clk 0:03:00.2]} 11. Bd3
{[%clk 0:03:11.5]} 11... Rc8 {[%clk 0:03:00.2]} 12. Kb1 {[%clk 0:03:12.5]} 12...
Nd7 {[%clk 0:03:00.9]} 13. h4 {[%clk 0:03:12.2]} 13... Nce5 {[%clk 0:03:01.8]}
14. b3 {[%clk 0:03:09.8]} 14... b4 {[%clk 0:02:53.7]} 15. Nce2 {[%clk
0:03:10.2]} 15... a5 {[%clk 0:02:51.9]} 16. g5 {[%clk 0:03:09.2]} 16... d5
{[%clk 0:02:49.9]} 17. h5 {[%clk 0:02:50.1]} 17... Nxd3 {[%clk 0:02:38.9]} 18.
cxd3 {[%clk 0:02:42.3]} 18... Ba6 {[%clk 0:02:16.7]} 19. g6 {[%clk 0:02:37.7]}
19... Nc5 {[%clk 0:02:16.9]} 20. Nc1 {[%clk 0:02:31.1]} 20... Bf6 {[%clk
0:02:13.2]} 21. h6 {[%clk 0:01:43.9]} 21... fxg6 {[%clk 0:02:08.5]} 22. hxg7
{[%clk 0:01:43.9]} 22... Bxg7 {[%clk 0:02:09.8]} 23. e5 {[%clk 0:01:34.3]} 23...
Bxe5 {[%clk 0:02:07.6]} 24. Rhe1 {[%clk 0:01:35]} 24... O-O {[%clk 0:02:07.7]}
25. Bh6 {[%clk 0:01:34.2]} 25... Bxd4 {[%clk 0:02:08.3]} 26. Bxf8 {[%clk
0:01:35]} 26... Qxf8 {[%clk 0:02:09.4]} 27. Qh2 {[%clk 0:01:12.8]} 27... e5
{[%clk 0:01:59.5]} 28. Rh1 {[%clk 0:00:55.8]} 28... Qg7 {[%clk 0:01:59]} 29. Qh3
{[%clk 0:00:54.4]} 29... Rf8 {[%clk 0:01:56.5]} 30. Kc2 {[%clk 0:00:42.2]} 30...
Bc8 {[%clk 0:01:57.2]} 31. Qh4 {[%clk 0:00:39.8]} 31... Bf5 {[%clk 0:01:58.5]}
0-1

[Event "*** MasterClass Titled Tuesday Blitz"]
[Site "Chess.com"]
[Date "2017.12.12"]
[Round "4"]
[White "oogee"]
[Black "goldenspine"]
[Result "0-1"]
[WhiteElo "2146"]
[BlackElo "2282"]
[TimeControl "180+2"]
[EndTime "13:49:24 PST"]
[Termination "goldenspine won by resignation"]

1. d4 {[%clk 0:02:58.7]} 1... Nf6 {[%clk 0:03:00.7]} 2. c4 {[%clk 0:02:58.2]}
2... g6 {[%clk 0:03:02.3]} 3. Nc3 {[%clk 0:02:57.2]} 3... d5 {[%clk 0:03:03.9]}
4. Nf3 {[%clk 0:02:56.4]} 4... Bg7 {[%clk 0:03:04.8]} 5. Qb3 {[%clk 0:02:57]}
5... dxc4 {[%clk 0:03:03.2]} 6. Qxc4 {[%clk 0:02:58.1]} 6... a6 {[%clk 0:03:04]}
7. Qd3 {[%clk 0:02:50.5]} 7... O-O {[%clk 0:03:00.9]} 8. e4 {[%clk 0:02:50.5]}
8... c5 {[%clk 0:02:57.2]} 9. Bf4 {[%clk 0:02:40]} 9... cxd4 {[%clk 0:02:52]}
10. Nxd4 {[%clk 0:02:40.4]} 10... Qa5 {[%clk 0:02:29.6]} 11. Nb3 {[%clk
0:02:35.9]} 11... Qb4 {[%clk 0:02:28]} 12. Bd2 {[%clk 0:02:32.1]} 12... Nc6
{[%clk 0:02:19.6]} 13. f4 {[%clk 0:02:29.4]} 13... Rd8 {[%clk 0:02:18.3]} 14.
Qe3 {[%clk 0:02:18]} 14... Ng4 {[%clk 0:02:17.4]} 15. Qg1 {[%clk 0:02:14]} 15...
Rxd2 {[%clk 0:02:05.4]} 16. Kxd2 {[%clk 0:02:14.1]} 16... Be6 {[%clk 0:02:01.6]}
17. Bd3 {[%clk 0:02:10.9]} 17... Rd8 {[%clk 0:02:00.4]} 18. Rd1 {[%clk
0:01:49.6]} 18... Bxb3 {[%clk 0:01:52.2]} 19. axb3 {[%clk 0:01:50]} 19... Bd4
{[%clk 0:01:47.9]} 20. Qe1 {[%clk 0:01:42]} 20... Qxb3 {[%clk 0:01:46.1]} 21.
Kc1 {[%clk 0:01:37.3]} 21... Nb4 {[%clk 0:01:42.2]} 22. h3 {[%clk 0:00:49]}
22... Na2+ {[%clk 0:01:35.3]} 0-1

[Event "*** MasterClass Titled Tuesday Blitz"]
[Site "Chess.com"]
[Date "2017.12.12"]
[Round "4"]
[White "juniortay"]
[Black "LuisFSiles"]
[Result "1-0"]
[WhiteElo "2326"]
[BlackElo "2225"]
[TimeControl "180+2"]
[EndTime "13:49:44 PST"]
[Termination "juniortay won by resignation"]

1. e4 {[%clk 0:03:01.9]} 1... e5 {[%clk 0:02:59.7]} 2. Nc3 {[%clk 0:03:02.1]}
2... Nf6 {[%clk 0:02:58.9]} 3. Bc4 {[%clk 0:03:02.7]} 3... Nc6 {[%clk
0:02:54.9]} 4. d3 {[%clk 0:03:03.5]} 4... Bb4 {[%clk 0:02:43.7]} 5. Ne2 {[%clk
0:03:03.9]} 5... d5 {[%clk 0:02:42.2]} 6. exd5 {[%clk 0:03:04.4]} 6... Nxd5
{[%clk 0:02:43.3]} 7. O-O {[%clk 0:03:05.9]} 7... Nxc3 {[%clk 0:02:43.6]} 8.
bxc3 {[%clk 0:03:07.8]} 8... Bd6 {[%clk 0:02:40.2]} 9. Ng3 {[%clk 0:03:08.3]}
9... Qh4 {[%clk 0:02:33.4]} 10. Ne4 {[%clk 0:02:58.5]} 10... h6 {[%clk
0:02:24.4]} 11. f4 {[%clk 0:02:36]} 11... Bg4 {[%clk 0:01:59.4]} 12. Qd2 {[%clk
0:02:34.9]} 12... O-O {[%clk 0:01:46.9]} 13. f5 {[%clk 0:02:30.4]} 13... Qh5
{[%clk 0:01:13.3]} 14. Qf2 {[%clk 0:02:11.4]} 14... Na5 {[%clk 0:00:53.1]} 15.
h3 {[%clk 0:01:56.5]} 15... Be2 {[%clk 0:00:52.2]} 16. Ng3 {[%clk 0:01:40.3]}
16... Qh4 {[%clk 0:00:36.7]} 17. Nxe2 {[%clk 0:01:32.3]} 17... Qxf2+ {[%clk
0:00:36.9]} 18. Kxf2 {[%clk 0:01:28.8]} 18... Nxc4 {[%clk 0:00:28.5]} 19. dxc4
{[%clk 0:01:28.3]} 19... Rad8 {[%clk 0:00:26.5]} 20. Ng3 {[%clk 0:01:22.2]}
20... Bc5+ {[%clk 0:00:20.7]} 21. Ke2 {[%clk 0:01:21.9]} 21... Rd6 {[%clk
0:00:17.6]} 22. Ne4 {[%clk 0:01:15.5]} 22... Rc6 {[%clk 0:00:18.1]} 23. Nxc5
{[%clk 0:01:16.4]} 1-0

[Event "*** MasterClass Titled Tuesday Blitz"]
[Site "Chess.com"]
[Date "2017.12.12"]
[Round "4"]
[White "Apocalyps999"]
[Black "Vahe_Dan"]
[Result "0-1"]
[WhiteElo "2418"]
[BlackElo "2556"]
[TimeControl "180+2"]
[EndTime "13:50:10 PST"]
[Termination "Vahe_Dan won by resignation"]

1. e4 {[%clk 0:02:55.5]} 1... g6 {[%clk 0:03:00.6]} 2. d4 {[%clk 0:02:19.8]}
2... Bg7 {[%clk 0:02:59.8]} 3. Nc3 {[%clk 0:02:18]} 3... d5 {[%clk 0:02:57.4]}
4. exd5 {[%clk 0:02:15.4]} 4... Nf6 {[%clk 0:02:56.4]} 5. Nf3 {[%clk 0:02:15.2]}
5... O-O {[%clk 0:02:57.6]} 6. Be2 {[%clk 0:02:14.8]} 6... Nxd5 {[%clk
0:02:55.4]} 7. Nxd5 {[%clk 0:02:14.8]} 7... Qxd5 {[%clk 0:02:56.1]} 8. c4 {[%clk
0:02:14]} 8... Qd6 {[%clk 0:02:54.2]} 9. O-O {[%clk 0:02:13.7]} 9... Bf5 {[%clk
0:02:55.1]} 10. Be3 {[%clk 0:02:12.8]} 10... c6 {[%clk 0:02:53.3]} 11. Qb3
{[%clk 0:02:12.5]} 11... Nd7 {[%clk 0:02:52.1]} 12. Qxb7 {[%clk 0:02:02.1]}
12... Rfb8 {[%clk 0:02:50.6]} 13. Qa6 {[%clk 0:02:03.1]} 13... Rxb2 {[%clk
0:02:44.7]} 14. c5 {[%clk 0:02:04.4]} 14... Qc7 {[%clk 0:02:44.5]} 15. Bd3
{[%clk 0:01:19.7]} 15... Bxd3 {[%clk 0:02:42.3]} 16. Qxd3 {[%clk 0:01:19.6]}
16... Rd8 {[%clk 0:02:44.2]} 17. Qc4 {[%clk 0:01:13]} 17... e6 {[%clk
0:02:41.5]} 18. g3 {[%clk 0:01:09.3]} 18... Qa5 {[%clk 0:02:39.5]} 19. Bf4
{[%clk 0:01:03.8]} 19... Rb4 {[%clk 0:02:35.5]} 20. Qc3 {[%clk 0:00:52.1]} 20...
Qb5 {[%clk 0:02:30.4]} 21. a4 {[%clk 0:00:37.5]} 21... Qc4 {[%clk 0:02:28.7]}
22. Qe3 {[%clk 0:00:24.2]} 22... Nf6 {[%clk 0:02:24.5]} 23. Rfc1 {[%clk
0:00:23.3]} 23... Qd5 {[%clk 0:02:20]} 24. Bd6 {[%clk 0:00:23.4]} 24... Ng4
{[%clk 0:02:16.4]} 25. Qf4 {[%clk 0:00:19.9]} 25... Bxd4 {[%clk 0:02:14]} 26.
Nxd4 {[%clk 0:00:18.3]} 26... Rxd4 {[%clk 0:02:12.2]} 27. Qxd4 {[%clk
0:00:04.8]} 27... Qxd4 {[%clk 0:02:13]} 28. Ra2 {[%clk 0:00:03.3]} 28... h5
{[%clk 0:02:08.4]} 29. h3 {[%clk 0:00:04.3]} 29... Ne5 {[%clk 0:02:07.5]} 30.
Re2 {[%clk 0:00:05]} 30... Nf3+ {[%clk 0:02:04.1]} 31. Kg2 {[%clk 0:00:06]}
31... Qd5 {[%clk 0:02:04.5]} 32. Kf1 {[%clk 0:00:05.8]} 32... Nd2+ {[%clk
0:02:01.3]} 33. Ke1 {[%clk 0:00:06.9]} 33... Nf3+ {[%clk 0:01:57.5]} 34. Kf1
{[%clk 0:00:07.2]} 34... Nd4 {[%clk 0:01:58.3]} 0-1

[Event "*** MasterClass Titled Tuesday Blitz"]
[Site "Chess.com"]
[Date "2017.12.12"]
[Round "4"]
[White "DrVelja"]
[Black "ENEASZ"]
[Result "0-1"]
[WhiteElo "2537"]
[BlackElo "2420"]
[TimeControl "180+2"]
[EndTime "13:50:30 PST"]
[Termination "ENEASZ won by resignation"]

1. e4 {[%clk 0:03:01.9]} 1... d6 {[%clk 0:03:00.5]} 2. d4 {[%clk 0:03:02.7]}
2... Nf6 {[%clk 0:03:01.9]} 3. Nc3 {[%clk 0:03:01.6]} 3... e5 {[%clk 0:03:03.1]}
4. Nf3 {[%clk 0:03:02.8]} 4... Nbd7 {[%clk 0:03:03.8]} 5. g4 {[%clk 0:03:04.4]}
5... Nxg4 {[%clk 0:03:02.2]} 6. Rg1 {[%clk 0:03:05.8]} 6... exd4 {[%clk
0:03:03.7]} 7. Qxd4 {[%clk 0:03:03.8]} 7... Nde5 {[%clk 0:03:05]} 8. Be2 {[%clk
0:02:38.3]} 8... Qf6 {[%clk 0:03:05.6]} 9. Nxe5 {[%clk 0:02:29]} 9... dxe5
{[%clk 0:03:05.8]} 10. Nd5 {[%clk 0:01:08.4]} 10... exd4 {[%clk 0:02:53.6]} 11.
Nxf6+ {[%clk 0:01:09]} 11... Nxf6 {[%clk 0:02:55.5]} 12. Bf4 {[%clk 0:01:07.6]}
12... Bb4+ {[%clk 0:02:51]} 13. c3 {[%clk 0:01:06.1]} 13... dxc3 {[%clk
0:02:52.9]} 14. O-O-O {[%clk 0:01:07.6]} 14... cxb2+ {[%clk 0:02:44.5]} 15. Kxb2
{[%clk 0:01:08.7]} 15... Be6 {[%clk 0:02:11.8]} 16. Rxg7 {[%clk 0:01:02.9]}
16... c6 {[%clk 0:02:10.3]} 17. Rg3 {[%clk 0:00:37.7]} 17... Rg8 {[%clk
0:02:01.5]} 18. Rgd3 {[%clk 0:00:32.3]} 18... Be7 {[%clk 0:01:37.2]} 19. Be5
{[%clk 0:00:24.3]} 19... Nxe4 {[%clk 0:01:34.6]} 20. Re3 {[%clk 0:00:24]} 20...
Nxf2 {[%clk 0:01:27.9]} 21. Rf1 {[%clk 0:00:25.4]} 21... Ng4 {[%clk 0:01:28.8]}
22. Rg3 {[%clk 0:00:27]} 22... Rg6 {[%clk 0:01:25.3]} 23. Bc3 {[%clk 0:00:26.8]}
23... Nxh2 {[%clk 0:01:14.7]} 24. Re3 {[%clk 0:00:23.6]} 24... Ng4 {[%clk
0:01:13.3]} 25. Rh3 {[%clk 0:00:22.9]} 25... Nf6 {[%clk 0:01:10.8]} 26. Rhf3
{[%clk 0:00:21.3]} 26... Nd5 {[%clk 0:01:11.1]} 27. Be5 {[%clk 0:00:20.2]} 27...
Rg2 {[%clk 0:01:07.4]} 28. R3f2 {[%clk 0:00:18.7]} 28... Rxf2 {[%clk 0:01:06.3]}
29. Rxf2 {[%clk 0:00:20.6]} 29... O-O-O {[%clk 0:01:06.5]} 0-1

[Event "*** MasterClass Titled Tuesday Blitz"]
[Site "Chess.com"]
[Date "2017.12.12"]
[Round "4"]
[White "AndrewDGreen"]
[Black "Enzy63"]
[Result "1-0"]
[WhiteElo "2084"]
[BlackElo "2048"]
[TimeControl "180+2"]
[EndTime "13:50:30 PST"]
[Termination "AndrewDGreen won by resignation"]

1. d4 {[%clk 0:03:01.9]} 1... d5 {[%clk 0:01:56.6]} 2. Bf4 {[%clk 0:03:01.3]}
2... Nf6 {[%clk 0:01:54.2]} 3. e3 {[%clk 0:03:01.7]} 3... c5 {[%clk 0:01:53.5]}
4. Nc3 {[%clk 0:03:00.2]} 4... Nc6 {[%clk 0:01:54.9]} 5. Nb5 {[%clk 0:03:00.8]}
5... e5 {[%clk 0:01:46.9]} 6. dxe5 {[%clk 0:03:02]} 6... Ne4 {[%clk 0:01:39.8]}
7. Qxd5 {[%clk 0:02:41.9]} 7... Qa5+ {[%clk 0:01:30]} 8. c3 {[%clk 0:02:40.5]}
8... Bf5 {[%clk 0:01:27]} 9. Bc4 {[%clk 0:02:07.8]} 9... Bg6 {[%clk 0:01:21.3]}
10. e6 {[%clk 0:02:03.9]} 10... fxe6 {[%clk 0:00:47.7]} 11. Qxe6+ {[%clk
0:02:02.4]} 11... Be7 {[%clk 0:00:49.1]} 12. Nc7+ {[%clk 0:01:55.2]} 12... Kf8
{[%clk 0:00:49.2]} 13. Nxa8 {[%clk 0:01:53.9]} 13... Nxc3 {[%clk 0:00:50]} 14.
Bc7 {[%clk 0:01:25.2]} 14... Qb4 {[%clk 0:00:46.3]} 15. bxc3 {[%clk 0:01:13.8]}
15... Qxc3+ {[%clk 0:00:46.5]} 16. Ke2 {[%clk 0:01:15.3]} 16... Qxa1 {[%clk
0:00:42.5]} 17. Qc8+ {[%clk 0:01:14.5]} 17... Be8 {[%clk 0:00:41.5]} 18. Qf5+
{[%clk 0:01:13]} 18... Bf6 {[%clk 0:00:30.9]} 19. Bd6+ {[%clk 0:01:06.8]} 19...
Ne7 {[%clk 0:00:31.8]} 20. Nc7 {[%clk 0:00:50.5]} 20... Qb2+ {[%clk 0:00:30.6]}
21. Kf3 {[%clk 0:00:51.2]} 21... Bc6+ {[%clk 0:00:30.3]} 22. Kg3 {[%clk
0:00:44.3]} 22... h5 {[%clk 0:00:25.6]} 23. Qc8+ {[%clk 0:00:36.9]} 1-0

[Event "*** MasterClass Titled Tuesday Blitz"]
[Site "Chess.com"]
[Date "2017.12.12"]
[Round "4"]
[White "NewBornNow"]
[Black "SenseiJulio"]
[Result "0-1"]
[WhiteElo "2583"]
[BlackElo "2524"]
[TimeControl "180+2"]
[EndTime "13:50:38 PST"]
[Termination "SenseiJulio won by resignation"]

1. e4 {[%clk 0:03:01.9]} 1... e5 {[%clk 0:03:00.7]} 2. Nf3 {[%clk 0:03:01.8]}
2... Nc6 {[%clk 0:03:02.2]} 3. Bc4 {[%clk 0:03:02]} 3... Nf6 {[%clk 0:03:03.2]}
4. d3 {[%clk 0:03:03]} 4... h6 {[%clk 0:03:04.3]} 5. O-O {[%clk 0:03:02.9]} 5...
d6 {[%clk 0:03:05.2]} 6. c3 {[%clk 0:03:03.9]} 6... g5 {[%clk 0:03:04.3]} 7. Re1
{[%clk 0:02:59.8]} 7... Bg7 {[%clk 0:02:59.3]} 8. d4 {[%clk 0:02:53.6]} 8... O-O
{[%clk 0:02:50.1]} 9. dxe5 {[%clk 0:02:49.4]} 9... dxe5 {[%clk 0:02:30.4]} 10.
Qe2 {[%clk 0:02:38]} 10... Bg4 {[%clk 0:02:12.4]} 11. Nbd2 {[%clk 0:02:36.7]}
11... Nh5 {[%clk 0:02:07.3]} 12. g3 {[%clk 0:02:34]} 12... Ne7 {[%clk
0:01:59.1]} 13. Qe3 {[%clk 0:02:18.4]} 13... Ng6 {[%clk 0:01:55.1]} 14. Bf1
{[%clk 0:02:17.6]} 14... Qd7 {[%clk 0:01:40.8]} 15. Qd3 {[%clk 0:01:53.9]} 15...
Qc8 {[%clk 0:01:39.8]} 16. Nc4 {[%clk 0:01:48.5]} 16... Kh8 {[%clk 0:01:28.4]}
17. Nfd2 {[%clk 0:01:45.4]} 17... Rd8 {[%clk 0:01:08.6]} 18. Qc2 {[%clk
0:01:44.7]} 18... Ngf4 {[%clk 0:00:58]} 19. gxf4 {[%clk 0:01:40.6]} 19... gxf4
{[%clk 0:00:54.8]} 20. f3 {[%clk 0:01:19.9]} 20... Bh3 {[%clk 0:00:54.7]} 21.
Nb3 {[%clk 0:01:12.9]} 21... Bf6 {[%clk 0:00:55.2]} 22. Qf2 {[%clk 0:01:09]}
22... Rg8+ {[%clk 0:00:54.3]} 23. Kh1 {[%clk 0:01:08.9]} 23... Bxf1 {[%clk
0:00:40.4]} 24. Rxf1 {[%clk 0:01:04.7]} 24... Qh3 {[%clk 0:00:36.7]} 25. Ne3
{[%clk 0:00:33]} 25... Ng3+ {[%clk 0:00:29.9]} 26. Qxg3 {[%clk 0:00:30.5]} 26...
fxg3 {[%clk 0:00:31.8]} 0-1

[Event "*** MasterClass Titled Tuesday Blitz"]
[Site "Chess.com"]
[Date "2017.12.12"]
[Round "4"]
[White "GMHess"]
[Black "cheese111"]
[Result "1-0"]
[WhiteElo "2585"]
[BlackElo "2424"]
[TimeControl "180+2"]
[EndTime "13:50:42 PST"]
[Termination "GMHess won on time"]

1. d4 {[%clk 0:03:01.7]} 1... d5 {[%clk 0:02:59]} 2. Nf3 {[%clk 0:03:00]} 2...
Nf6 {[%clk 0:02:59.7]} 3. Bf4 {[%clk 0:03:01.1]} 3... e6 {[%clk 0:03:00.6]} 4.
e3 {[%clk 0:03:01.6]} 4... Bd6 {[%clk 0:03:02.1]} 5. Bg5 {[%clk 0:03:02.9]} 5...
O-O {[%clk 0:03:00]} 6. Nbd2 {[%clk 0:03:03.2]} 6... Be7 {[%clk 0:02:50]} 7. Bd3
{[%clk 0:02:58.6]} 7... Nbd7 {[%clk 0:02:44.2]} 8. c3 {[%clk 0:02:56.5]} 8... c5
{[%clk 0:02:44.6]} 9. Qe2 {[%clk 0:02:52.5]} 9... b6 {[%clk 0:02:18.8]} 10.
O-O-O {[%clk 0:02:19.3]} 10... Bb7 {[%clk 0:02:13.1]} 11. h4 {[%clk 0:02:05.5]}
11... c4 {[%clk 0:02:02.3]} 12. Bc2 {[%clk 0:02:04.3]} 12... b5 {[%clk
0:02:03.4]} 13. Ne5 {[%clk 0:01:29]} 13... Ne4 {[%clk 0:00:54.8]} 14. Nxe4
{[%clk 0:01:10.2]} 14... dxe4 {[%clk 0:00:54.8]} 15. Nxd7 {[%clk 0:01:06.7]}
15... Qxd7 {[%clk 0:00:54.2]} 16. d5 {[%clk 0:00:44.7]} 16... f6 {[%clk
0:00:12.3]} 17. Bxe4 {[%clk 0:00:27.2]} 17... exd5 {[%clk 0:00:04.5]} 18. Qc2
{[%clk 0:00:15]} 1-0